fUSD/lending_fUSD_20240409
["ID","MTS","AMOUNT","RATE_DAILY","PERIOD"]
[321994944,1712676646843,-500.0,0.00019178,2]
[321994945,1712676646853,-500.0,0.00019178,2]
[321994946,1712676646862,-882.85,0.00019178,2]
[321994947,1712676646873,-689.85,0.00019178,2]
[321994948,1712676646883,-602.16959029,0.00019178,2]
[321994949,1712676646892,-500.0,0.00019178,2]
[321994950,1712676646903,-500.0,0.00019178,2]
[321994951,1712676646915,-502.81971979,0.00019178,2]
[321994952,1712676646924,-500.0,0.00019178,2]
[321994953,1712676646933,-500.0,0.00019178,2]
[321994954,1712676646942,-500.0,0.00019178,2]
[321994955,1712676646955,-500.0,0.00019178,2]
[321994956,1712676646964,-1323.73,0.00019178,2]
[321994957,1712676646973,-500.0,0.00019178,2]
[321994958,1712676646983,-621.09,0.00019178,2]
[321994959,1712676646994,-500.0,0.00019178,2]
[321994960,1712676647004,-500.0,0.00019178,2]
[321994961,1712676647014,-519.77,0.00019178,2]
[321994962,1712676647023,-500.0,0.00019178,2]
[321994963,1712676647034,-500.0,0.00019178,2]
[321994964,1712676647042,-500.0,0.00019178,2]
[321994965,1712676647052,-500.0,0.00019178,2]
[321994966,1712676647061,-500.0,0.00019178,2]
[321994967,1712676647070,-502.56324578,0.00019178,2]
[321994968,1712676647079,-500.0,0.00019178,2]
[321994969,1712676647088,-454.74741291,0.00019178,2]
[321994970,1712676647097,-500.0,0.00019178,2]
[321994971,1712676647106,-500.0,0.00019178,2]
[321994972,1712676647115,-500.0,0.00019178,2]
[321994973,1712676647124,-500.0,0.00019178,2]
[321994974,1712676647134,-500.0,0.00019178,2]
[321994975,1712676647143,-618.95,0.00019178,2]
[321994976,1712676647153,-510.19948131,0.00019178,2]
[321994977,1712676647163,-755.51,0.00019178,2]
[321994978,1712676647171,-500.0,0.00019178,2]
[321994979,1712676647181,-500.0,0.00019178,2]
[321994980,1712676647189,-500.0,0.00019178,2]
[321994981,1712676647200,-500.0,0.00019178,2]
[321994982,1712676647210,-545.82,0.00019178,2]
[321994983,1712676647220,-500.0,0.00019178,2]
[321994984,1712676647229,-501.1800192,0.00019178,2]
[321994985,1712676647239,-769.04,0.00019178,2]
[321994986,1712676647249,-500.0,0.00019178,2]
[321994987,1712676647259,-2260.77,0.00019178,2]
[321994988,1712676647268,-500.0,0.00019178,2]
[321994989,1712676647277,-500.0,0.00019178,2]
[321994990,1712676647286,-500.0,0.00019178,2]
[321994991,1712676647295,-500.0,0.00019178,2]
[321994992,1712676647305,-500.0,0.00019178,2]
[321994993,1712676647314,-500.0,0.00019178,2]
[321994994,1712676647324,-500.0,0.00019178,2]
[321994995,1712676647333,-1008.49,0.00019178,2]
[321994996,1712676647343,-500.0,0.00019178,2]
[321994997,1712676647352,-6594.83,0.00019178,2]
[321994998,1712676647376,-649.03,0.00019178,2]
[321994999,1712676647386,-1003.01,0.00019178,2]
[321995000,1712676647395,-500.0,0.00019178,2]
[321995001,1712676647405,-500.0,0.00019178,2]
[321995002,1712676647414,-502.57,0.00019178,2]
[321995003,1712676647424,-1107.95,0.00019178,2]
[321995004,1712676647434,-676.66,0.00019178,2]
[321995005,1712676647443,-500.0,0.00019178,2]
[321995006,1712676647457,-500.0,0.00019178,2]
[321995007,1712676647466,-500.0,0.00019178,2]
[321995008,1712676647475,-500.0,0.00019178,2]
[321995009,1712676647485,-500.0,0.00019178,2]
[321995010,1712676647494,-500.0,0.00019178,2]
[321995011,1712676647503,-407.22388471,0.00019178,2]
[321995012,1712676647513,-1570.43,0.00019178,2]
[321995013,1712676647523,-17892.12,0.00019178,2]
[321995014,1712676647534,-538.73,0.00019178,2]
[321995015,1712676647550,-500.0,0.00019178,2]
[321995016,1712676647559,-500.0,0.00019178,2]
[321995017,1712676647568,-803.76,0.00019178,2]
[321995018,1712676647578,-500.0,0.00019178,2]
[321995019,1712676647589,-500.0,0.00019178,2]
[321995020,1712676647597,-500.0,0.00019178,2]
[321995021,1712676647608,-650.59,0.00019178,2]
[321995022,1712676647618,-500.0,0.00019178,2]
[321995023,1712676647627,-500.0,0.00019178,2]
[321995024,1712676647639,-998.82,0.00019178,2]
[321995025,1712676647648,-500.0,0.00019178,2]
[321995026,1712676647657,-240.72924602,0.00019178,2]
[321995027,1712676647666,-500.0,0.00019178,2]
[321995028,1712676647675,-986.68,0.00019178,2]
[321995029,1712676647685,-500.0,0.00019178,2]
[321995030,1712676647695,-500.0,0.00019178,2]
[321995031,1712676647712,-500.0,0.00019178,2]
[321995032,1712676647721,-500.0,0.00019178,2]
[321995033,1712676647731,-1878.77,0.00019178,2]
[321995034,1712676647741,-863.97,0.00019178,2]
[321995035,1712676647751,-735.34,0.00019178,2]
[321995036,1712676647761,-500.0,0.00019178,2]
[321995037,1712676647770,-2265.43,0.00019178,2]
[321995038,1712676647779,-500.0,0.00019178,2]
[321995039,1712676647788,-500.0,0.00019178,2]
[321995040,1712676647796,-554.65,0.00019178,2]
[321995041,1712676647806,-500.0,0.00019178,2]
[321995042,1712676647815,-971.14,0.00019178,2]
[321995043,1712676647825,-500.0,0.00019178,2]
[321995044,1712676647834,-927.54,0.00019178,2]
[321995045,1712676647843,-500.0,0.00019178,2]
[321995046,1712676647852,-1401.53,0.00019178,2]
[321995047,1712676647862,-4320.32,0.00019178,2]
[321995048,1712676647872,-500.0,0.00019178,2]
[321995049,1712676647882,-500.0,0.00019178,2]
[321995050,1712676647891,-580.82,0.00019178,2]
[321995051,1712676647901,-718.39,0.00019178,2]
[321995052,1712676647911,-500.0,0.00019178,2]
[321995053,1712676647921,-1525.87,0.00019178,2]
[321995054,1712676647931,-500.0,0.00019178,2]
[321995055,1712676647941,-500.0,0.00019178,2]
[321995056,1712676647955,-739.02,0.00019178,2]
[321995057,1712676647967,-2737.05,0.00019178,2]
[321995058,1712676647978,-500.0,0.00019178,2]
[321995059,1712676647987,-648.32,0.00019178,2]
[321995060,1712676647997,-500.0,0.00019178,2]
[321995061,1712676648007,-4465.66,0.00019178,2]
[321995062,1712676648017,-26953.01,0.00019178,2]
[321995063,1712676648026,-500.0,0.00019178,2]
[321995064,1712676648036,-667.08,0.00019178,2]
[321995065,1712676648045,-500.0,0.00019178,2]
[321995066,1712676648055,-664.36,0.00019178,2]
[321995067,1712676648064,-2012.13,0.00019178,2]
[321995068,1712676648074,-500.0,0.00019178,2]
[321995069,1712676648083,-500.0,0.00019178,2]
[321995070,1712676648093,-500.0,0.00019178,2]
[321995071,1712676648103,-500.0,0.00019178,2]
[321995072,1712676648112,-1142.32,0.00019178,2]
[321995073,1712676648122,-500.0,0.00019178,2]
[321995074,1712676648131,-2002.17,0.00019178,2]
[321995075,1712676648141,-500.0,0.00019178,2]
[321995076,1712676648150,-859.6,0.00019178,2]
[321995077,1712676648160,-500.0,0.00019178,2]
[321995078,1712676648169,-502.05,0.00019178,2]
[321995079,1712676648178,-2165.23,0.00019178,2]
[321995080,1712676648188,-500.0,0.00019178,2]
[321995081,1712676648202,-722.64,0.00019178,2]
[321995082,1712676648212,-2052.96,0.00019178,2]
[321995083,1712676648221,-3041.17,0.00019178,2]
[321995084,1712676648230,-585.79,0.00019178,2]
[321995085,1712676648239,-500.0,0.00019178,2]
[321995086,1712676648248,-554.27,0.00019178,2]
[321995087,1712676648259,-500.0,0.00019178,2]
[321995088,1712676648268,-749.59,0.00019178,2]
[321995089,1712676648277,-500.0,0.00019178,2]
[321995090,1712676648287,-877.28,0.00019178,2]
[321995091,1712676648297,-500.0,0.00019178,2]
[321995092,1712676648306,-16792.54,0.00019178,2]
[321995093,1712676648316,-2957.43,0.00019178,2]
[321995094,1712676648325,-500.0,0.00019178,2]
[321995095,1712676648336,-500.0,0.00019178,2]
[321995096,1712676648346,-500.0,0.00019178,2]
[321995097,1712676648355,-500.0,0.00019178,2]
[321995098,1712676648364,-500.0,0.00019178,2]
[321995099,1712676648374,-648.13,0.00019178,2]
[321995100,1712676648383,-500.0,0.00019178,2]
[321995101,1712676648392,-500.0,0.00019178,2]
[321995102,1712676648406,-769.27,0.00019178,2]
[321995103,1712676648416,-500.0,0.00019178,2]
[321995104,1712676648426,-7495.1,0.00019178,2]
[321995105,1712676648435,-1292.6,0.00019178,2]
[321995106,1712676648452,-1638.68,0.00019178,2]
[321995107,1712676648462,-500.0,0.00019178,2]
[321995108,1712676648472,-500.0,0.00019178,2]
[321995109,1712676648481,-1872.69,0.00019178,2]
[321995110,1712676648491,-1191.46,0.00019178,2]
[321995111,1712676648501,-500.0,0.00019178,2]
[321995112,1712676648512,-500.0,0.00019178,2]
[321995113,1712676648521,-857.93,0.00019178,2]
[321995114,1712676648532,-500.0,0.00019178,2]
[321995115,1712676648543,-959.23,0.00019178,2]
[321995116,1712676648552,-500.0,0.00019178,2]
[321995117,1712676648564,-1487.61,0.00019178,2]
[321995118,1712676648574,-960.58,0.00019178,2]
[321995119,1712676648584,-500.0,0.00019178,2]
[321995120,1712676648594,-4243.96,0.00019178,2]
[321995121,1712676648603,-500.0,0.00019178,2]
[321995122,1712676648612,-1440.71,0.00019178,2]
[321995123,1712676648791,-500.0,0.00019178,2]
[321995124,1712676648830,-500.0,0.00019178,2]
[321995125,1712676648840,-500.0,0.00019178,2]
[321995126,1712676648850,-1507.7,0.00019178,2]
[321995127,1712676648859,-500.0,0.00019178,2]
[321995128,1712676648870,-500.0,0.00019178,2]
[321995129,1712676648881,-1489.65,0.00019178,2]
[321995130,1712676648891,-1476.82,0.00019178,2]
[321995131,1712676648901,-1073.33,0.00019178,2]
[321995132,1712676648912,-898.37,0.00019178,2]
[321995133,1712676648922,-500.0,0.00019178,2]
[321995134,1712676648932,-3979.56,0.00019178,2]
[321995135,1712676648941,-3326.82,0.00019178,2]
[321995136,1712676648952,-2478.14,0.00019178,2]
[321995137,1712676648962,-500.0,0.00019178,2]
[321995138,1712676648972,-638.35,0.00019178,2]
[321995139,1712676648982,-500.0,0.00019178,2]
[321995140,1712676648992,-1254.04,0.00019178,2]
[321995141,1712676649001,-706.91,0.00019178,2]
[321995142,1712676649011,-500.0,0.00019178,2]
[321995143,1712676649021,-500.0,0.00019178,2]
[321995144,1712676649030,-500.0,0.00019178,2]
[321995145,1712676649039,-941.49,0.00019178,2]
[321995146,1712676649052,-500.0,0.00019178,2]
[321995147,1712676649069,-1428.32,0.00019178,2]
[321995148,1712676649079,-2598.14,0.00019178,2]
[321995149,1712676649089,-500.0,0.00019178,2]
[321995150,1712676649101,-3858.05,0.00019178,2]
[321995151,1712676649110,-500.0,0.00019178,2]
[321995152,1712676649119,-500.0,0.00019178,2]
[321995153,1712676649129,-500.0,0.00019178,2]
[321995154,1712676649139,-500.0,0.00019178,2]
[321995155,1712676649149,-500.0,0.00019178,2]
[321995156,1712676649159,-3040.34,0.00019178,2]
[321995157,1712676649168,-2227.86,0.00019178,2]
[321995158,1712676649177,-1711.67,0.00019178,2]
[321995159,1712676649187,-644.94,0.00019178,2]
[321995160,1712676649197,-1479.41,0.00019178,2]
[321995161,1712676649208,-500.0,0.00019178,2]
[321995162,1712676649218,-500.0,0.00019178,2]
[321995163,1712676649228,-7107.2,0.00019178,2]
[321995164,1712676649239,-1420.79,0.00019178,2]
[321995165,1712676649249,-1409.61,0.00019178,2]
[321995166,1712676649258,-9951.89,0.00019178,2]
[321995167,1712676649268,-500.0,0.00019178,2]
[321995168,1712676649277,-500.0,0.00019178,2]
[321995169,1712676649287,-743.07,0.00019178,2]
[321995170,1712676649297,-1614.06,0.00019178,2]
[321995171,1712676649307,-1967.91,0.00019178,2]
[321995172,1712676649317,-500.0,0.00019178,2]
[321995173,1712676649326,-4654.83,0.00019178,2]
[321995174,1712676649336,-1397.53,0.00019178,2]
[321995175,1712676649345,-3377.91,0.00019178,2]
[321995176,1712676649355,-500.0,0.00019178,2]
[321995177,1712676649366,-833.76,0.00019178,2]
[321995178,1712676649375,-3429.06,0.00019178,2]
[321995179,1712676649384,-620.95,0.00019178,2]
[321995180,1712676649395,-500.0,0.00019178,2]
[321995181,1712676649405,-471.22762964,0.00019178,2]
[321995182,1712676649416,-870.0,0.00019178,2]
[321995183,1712676649426,-944.65,0.00019178,2]
[321995184,1712676649436,-1475.37,0.00019178,2]
[321995185,1712676649445,-540.19,0.00019178,2]
[321995186,1712676649460,-1423.83,0.00019178,2]
[321995187,1712676649470,-1215.74,0.00019178,2]
[321995188,1712676649480,-500.0,0.00019178,2]
[321995189,1712676649490,-500.0,0.00019178,2]
[321995190,1712676649499,-8973.93,0.00019178,2]
[321995191,1712676649509,-1679.5,0.00019178,2]
[321995192,1712676649519,-7393.56,0.00019178,2]
[321995193,1712676649528,-500.0,0.00019178,2]
[321995194,1712676649539,-2040.59,0.00019178,2]
[321995195,1712676649556,-500.0,0.00019178,2]
[321995196,1712676649567,-2013.02,0.00019178,2]
[321995197,1712676649577,-619.58,0.00019178,2]
[321995198,1712676649588,-531.77,0.00019178,2]
[321995199,1712676649598,-500.0,0.00019178,2]
[321995200,1712676649608,-500.0,0.00019178,2]
[321995201,1712676649618,-500.0,0.00019178,2]
[321995202,1712676649629,-500.0,0.00019178,2]
[321995203,1712676649639,-500.0,0.00019178,2]
[321995204,1712676649649,-2077.5,0.00019178,2]
[321995205,1712676649658,-500.0,0.00019178,2]
[321995206,1712676649669,-500.0,0.00019178,2]
[321995207,1712676649679,-3265.25,0.00019178,2]
[321995208,1712676649689,-500.0,0.00019178,2]
[321995209,1712676649701,-500.0,0.00019178,2]
[321995210,1712676649713,-1003.77,0.00019178,2]
[321995211,1712676649722,-6502.21,0.00019178,2]
[321995212,1712676649732,-920.21,0.00019178,2]
[321995213,1712676649742,-845.53,0.00019178,2]
[321995214,1712676649752,-3230.87,0.00019178,2]
[321995215,1712676649762,-500.0,0.00019178,2]
[321995216,1712676649772,-500.0,0.00019178,2]
[321995217,1712676649782,-2435.92,0.00019178,2]
[321995218,1712676649793,-1422.41,0.00019178,2]
[321995219,1712676649803,-1766.36,0.00019178,2]
[321995220,1712676649813,-500.0,0.00019178,2]
[321995221,1712676649822,-1211.62,0.00019178,2]
[321995222,1712676649832,-1146.77,0.00019178,2]
[321995223,1712676649842,-500.0,0.00019178,2]
[321995224,1712676649852,-251.52042693,0.00019178,2]
[321995225,1712676649861,-1230.68,0.00019178,2]
[321995226,1712676649871,-583.33,0.00019178,2]
[321995227,1712676649880,-500.0,0.00019178,2]
[321995228,1712676649890,-500.0,0.00019178,2]
[321995229,1712676649901,-440.74028654,0.00019178,2]
[321995230,1712676649911,-628.84,0.00019178,2]
[321995231,1712676649920,-630.88,0.00019178,2]
[321995232,1712676649930,-1821.6,0.00019178,2]
[321995233,1712676649940,-2044.34,0.00019178,2]
[321995234,1712676649954,-500.0,0.00019178,2]
[321995235,1712676649964,-500.0,0.00019178,2]
[321995236,1712676649973,-1218.81,0.00019178,2]
[321995237,1712676649983,-20438.09,0.00019178,2]
[321995238,1712676649993,-1213.24,0.00019178,2]
[321995239,1712676650002,-500.0,0.00019178,2]
[321995240,1712676650013,-947.34,0.00019178,2]
[321995241,1712676650023,-500.0,0.00019178,2]
[321995242,1712676650033,-500.0,0.00019178,2]
[321995243,1712676650043,-500.0,0.00019178,2]
[321995244,1712676650053,-1166.06,0.00019178,2]
[321995245,1712676650063,-500.0,0.00019178,2]
[321995246,1712676650074,-500.0,0.00019178,2]
[321995247,1712676650084,-500.0,0.00019178,2]
[321995248,1712676650094,-500.0,0.00019178,2]
[321995249,1712676650103,-500.0,0.00019178,2]
[321995250,1712676650113,-500.0,0.00019178,2]
[321995251,1712676650123,-500.0,0.00019178,2]
[321995252,1712676650133,-500.0,0.00019178,2]
[321995253,1712676650142,-500.0,0.00019178,2]
[321995254,1712676650154,-1140.71,0.00019178,2]
[321995255,1712676650169,-567.1,0.00019178,2]
[321995256,1712676650184,-500.0,0.00019178,2]
[321995257,1712676650194,-500.0,0.00019178,2]
[321995258,1712676650208,-500.0,0.00019178,2]
[321995259,1712676650218,-644.31,0.00019178,2]
[321995260,1712676650228,-500.0,0.00019178,2]
[321995261,1712676650238,-1956.81,0.00019178,2]
[321995262,1712676650248,-2828.85,0.00019178,2]
[321995263,1712676650258,-4005.28,0.00019178,2]
[321995264,1712676650268,-2882.33,0.00019178,2]
[321995265,1712676650278,-500.0,0.00019178,2]
[321995267,1712676650287,-500.0,0.00019178,2]
[321995268,1712676650296,-1941.37,0.00019178,2]
[321995269,1712676650306,-500.0,0.00019178,2]
[321995270,1712676650315,-2933.01,0.00019178,2]
[321995271,1712676650325,-818.79,0.00019178,2]
[321995272,1712676650335,-1273.39,0.00019178,2]
[321995273,1712676650349,-500.0,0.00019178,2]
[321995274,1712676650368,-500.0,0.00019178,2]
[321995275,1712676650378,-3476.24,0.00019178,2]
[321995276,1712676650387,-500.0,0.00019178,2]
[321995277,1712676650398,-500.0,0.00019178,2]
[321995278,1712676650407,-526.03,0.00019178,2]
[321995279,1712676650417,-500.0,0.00019178,2]
[321995280,1712676650427,-500.0,0.00019178,2]
[321995281,1712676650436,-1119.72,0.00019178,2]
[321995282,1712676650446,-500.0,0.00019178,2]
[321995283,1712676650457,-2387.08,0.00019178,2]
[321995284,1712676650466,-557.76,0.00019178,2]
[321995285,1712676650476,-502.93,0.00019178,2]
[321995286,1712676650486,-500.0,0.00019178,2]
[321995287,1712676650496,-500.0,0.00019178,2]
[321995288,1712676650505,-4635.31,0.00019178,2]
[321995289,1712676650514,-500.0,0.00019178,2]
[321995290,1712676650525,-500.0,0.00019178,2]
[321995291,1712676650535,-162.73,0.0001918,2]
[321995292,1712676650546,-195.84349321,0.00019268,2]
[321995293,1712676650555,-5146.63506884,0.00019352,2]
[321995294,1712676650571,-172.12949933,0.00019352,2]
[321995295,1712676650581,-167.2,0.00019399,2]
[321995296,1712676650592,-5481.05783527,0.00019404,2]
[321995297,1712676650603,-161.06954375,0.00019448,2]
[321995298,1712676650615,-472.83649341,0.00019448,2]
[321995299,1712676650626,-190.36789189,0.00019448,2]
[321995300,1712676650636,-458.31395271,0.00019449,2]
[321995301,1712676650649,-224.19299856,0.00019449,2]
[321995302,1712676650659,-93465.6289419,0.00019449,2]
[321995304,1712676651327,-80955.23028751,0.00019449,2]
[321995305,1712676651340,-13831.12217918,0.00019449,2]
[321995306,1712676651390,-490.35302338,0.00019449,2]
[321995307,1712676651409,-1199.9881814,0.00019449,2]
[321995308,1712676651475,-46565.80787152,0.00019449,2]
[321995311,1712676652513,-192.56552369,0.00018707,2]
[321995312,1712676652524,-568.62360093,0.00018707,2]
[321995313,1712676652534,-583.0,0.00019178,2]
[321995314,1712676652544,-229.28522858,0.00019178,2]
[321995315,1712676652556,-5288.7110068,0.00019449,2]
[321995316,1712676652571,-409.62794306,0.00019449,2]
[321995317,1712676652584,-7131.262216,0.00019449,2]
[321995318,1712676652613,-1517.66185021,0.00019449,2]
[321995319,1712676652625,-3432.744,0.00019449,2]
[321995320,1712676652638,-343.89026156,0.00019449,2]
[321995321,1712676652655,-690.37982368,0.00019449,2]
[321995322,1712676652674,-14116.52939774,0.00019449,2]
[321995323,1712676652686,-404.20345887,0.00019449,2]
[321995686,1712677105989,524.76,0.00016412,2]
[321995689,1712677300090,887.26802333,0.000297,120]
[321995690,1712677373458,25000.0,0.00032552,30]
[321995693,1712677507050,150.0,0.00017753,2]
[321995694,1712677507384,150.0,0.00018,2]
[321995695,1712677509917,150.0,0.00019233,4]
[321995696,1712677511292,150.0,0.00019479,4]
[321995702,1712677629066,498.52,0.00016082,2]
[321995707,1712677714681,3133.97,0.00017969,2]
[321995722,1712677763844,299.99,0.00018346,4]
[321995723,1712677768793,200.0,0.00017952,2]
[321995724,1712677774319,-2038.5068938,0.00018013,2]
[321995725,1712677774340,-588.3974062,0.00018014,2]
[321995737,1712677832627,-156.23,0.00018021,2]
[321995739,1712677832637,-1225.4278,0.00018195,2]
[321995742,1712677832650,-499.72856,0.00018195,2]
[321995743,1712677833427,-858.49621984,0.00018195,2]
[321995744,1712677833474,-400.0,0.00018195,2]
[321995745,1712677833840,-499.2998041,0.00018195,2]
[321995746,1712677833875,-27461.97076989,0.00018195,2]
[321995747,1712677833888,-81697.18199796,0.00018195,2]
[321995748,1712677833898,-23900.0,0.00018196,2]
[321995749,1712677833907,-150.0,0.00018204,2]
[321995750,1712677833917,-150.0,0.00018247,2]
[321995751,1712677833927,-164.81,0.00018283,2]
[321995752,1712677833937,-150.0,0.00018329,2]
[321995753,1712677833947,-498.52,0.00018346,2]
[321995754,1712677833957,-150.99,0.00018346,2]
[321995755,1712677833967,-158.78563689,0.00018422,2]
[321995756,1712677833976,-150.0,0.00018493,2]
[321995757,1712677833986,-167.92,0.00018524,2]
[321995758,1712677833995,-910.0,0.00018607,2]
[321995759,1712677834005,-499.99,0.00018676,2]
[321995760,1712677834014,-150.0,0.0001874,2]
[321995761,1712677834025,-158.78563687,0.00018885,2]
[321995762,1712677834035,-150.0,0.00018907,2]
[321995763,1712677834044,-1015.7167,0.00018978,2]
[321995764,1712677834054,-150.0,0.00018986,2]
[321995765,1712677834064,-3695.7674,0.00019,2]
[321995766,1712677834076,-1250.0,0.00019,3]
[321995767,1712677834086,-150.0,0.00019055,2]
[321995768,1712677834095,-214.39582702,0.00019078,2]
[321995769,1712677834104,-7156.55816825,0.00019078,2]
[321995770,1712677834114,-3288.63470118,0.00019078,2]
[321995771,1712677834124,-320.8410927,0.00019078,2]
[321995772,1712677834134,-4864.917,0.00019078,2]
[321995773,1712677834143,-29023.8735,0.00019078,2]
[321995774,1712677834154,-1000.0,0.00019078,2]
[321995775,1712677834163,-6479.7464,0.00019078,2]
[321995776,1712677834173,-1000.0,0.00019078,2]
[321995777,1712677834182,-500.0,0.00019078,2]
[321995778,1712677834192,-348.6267,0.00019078,2]
[321995779,1712677834201,-2500.0,0.00019078,2]
[321995780,1712677834211,-2500.0,0.00019095,2]
[321995781,1712677834220,-2500.0,0.00019095,2]
[321995782,1712677834230,-198.02048487,0.00019176,2]
[321995783,1712677834240,-953.7472112,0.00019176,2]
[321995784,1712677834249,-1062.06209167,0.00019176,2]
[321995785,1712677834258,-465.05097873,0.00019176,2]
[321995786,1712677834268,-223.89922122,0.00019177,2]
[321995787,1712677834278,-233.20418876,0.00019177,2]
[321995788,1712677834287,-157.62416872,0.00019177,2]
[321995789,1712677834296,-654.64792341,0.00019177,2]
[321995790,1712677834306,-1830.85054705,0.00019177,2]
[321995791,1712677834315,-155.23176943,0.00019177,2]
[321995792,1712677834327,-155.0,0.00019177,2]
[321995793,1712677834337,-500.80452783,0.00019178,2]
[321995794,1712677834346,-500.0,0.00019178,2]
[321995795,1712677834355,-500.0,0.00019178,2]
[321995796,1712677834364,-500.0,0.00019178,2]
[321995797,1712677834374,-500.0,0.00019178,2]
[321995798,1712677834383,-500.0,0.00019178,2]
[321995799,1712677834392,-500.0,0.00019178,2]
[321995800,1712677834402,-500.0,0.00019178,2]
[321995801,1712677834411,-500.0,0.00019178,2]
[321995802,1712677834421,-500.0,0.00019178,2]
[321995803,1712677834430,-500.0,0.00019178,2]
[321995804,1712677834440,-500.0,0.00019178,2]
[321995805,1712677834449,-500.0,0.00019178,2]
[321995806,1712677834459,-500.0,0.00019178,2]
[321995807,1712677834468,-500.0,0.00019178,2]
[321995808,1712677834478,-500.0,0.00019178,2]
[321995809,1712677834487,-344.62986979,0.00019178,2]
[321995810,1712677834497,-500.0,0.00019178,2]
[321995811,1712677834507,-500.0,0.00019178,2]
[321995812,1712677834516,-227.36623062,0.00019178,2]
[321995813,1712677834525,-500.0,0.00019178,2]
[321995814,1712677834536,-500.0,0.00019178,2]
[321995815,1712677834546,-500.0,0.00019178,2]
[321995816,1712677834555,-500.0,0.00019178,2]
[321995817,1712677834564,-500.0,0.00019178,2]
[321995818,1712677834576,-377.91381083,0.00019178,2]
[321995819,1712677834585,-500.0,0.00019178,2]
[321995820,1712677834596,-500.0,0.00019178,2]
[321995821,1712677834605,-500.0,0.00019178,2]
[321995822,1712677834615,-500.0,0.00019178,2]
[321995823,1712677834624,-500.0,0.00019178,2]
[321995824,1712677834634,-444.4290183,0.00019178,2]
[321995825,1712677834643,-500.0,0.00019178,2]
[321995826,1712677834653,-500.0,0.00019178,2]
[321995827,1712677834662,-500.0,0.00019178,2]
[321995828,1712677834671,-500.0,0.00019178,2]
[321995829,1712677834681,-500.0,0.00019178,2]
[321995830,1712677834690,-500.0,0.00019178,2]
[321995831,1712677834700,-500.0,0.00019178,2]
[321995832,1712677834709,-500.0,0.00019178,2]
[321995833,1712677834718,-500.0,0.00019178,2]
[321995834,1712677834727,-500.0,0.00019178,2]
[321995835,1712677834737,-400.0,0.00019178,2]
[321995836,1712677834746,-500.0,0.00019178,2]
[321995837,1712677834755,-500.0,0.00019178,2]
[321995838,1712677834765,-500.0,0.00019178,2]
[321995839,1712677834774,-500.0,0.00019178,2]
[321995840,1712677834783,-500.0,0.00019178,2]
[321995841,1712677834792,-565.03,0.00019178,2]
[321995842,1712677834801,-500.0,0.00019178,2]
[321995843,1712677834811,-500.0,0.00019178,2]
[321995844,1712677834820,-500.0,0.00019178,2]
[321995845,1712677834832,-500.0,0.00019178,2]
[321995846,1712677834842,-500.0,0.00019178,2]
[321995847,1712677834852,-500.0,0.00019178,2]
[321995848,1712677834861,-513.6,0.00019178,2]
[321995849,1712677834876,-500.0,0.00019178,2]
[321995850,1712677834885,-500.0,0.00019178,2]